bitfinex/quotes_BTCUSD_20250617
["timestamp","ask_amount","ask_price","bid_price","bid_amount"]
[1750161818280,0.58872277,105690.0,105680.0,0.0317]
[1750161818483,0.8251219,105690.0,105680.0,0.0317]
[1750161818697,0.8251219,105690.0,105680.0,0.22095056]
[1750161818918,0.8251219,105690.0,105680.0,0.23987524]
[1750161819145,0.81566063,105690.0,105680.0,0.23987524]
[1750161819775,0.81566063,105690.0,105680.0,0.23041299]
[1750161820405,0.80619909,105690.0,105680.0,0.23041299]
[1750161820823,0.80619909,105690.0,105680.0,0.0317]
[1750161822355,0.80619909,105690.0,105680.0,0.23041308]
[1750161822555,0.80619909,105690.0,105680.0,0.04116252]
[1750161822762,0.80619909,105690.0,105680.0,0.0317]
[1750161822972,0.80619909,105690.0,105680.0,0.22095056]
[1750161823199,0.56979996,105690.0,105680.0,0.23987551]
[1750161823431,0.80619909,105690.0,105680.0,0.23987551]
[1750161823637,0.80619909,105690.0,105680.0,0.23041308]
[1750161824080,0.80619909,105690.0,105680.0,0.23987542]
[1750161824285,0.80619909,105690.0,105680.0,0.23041308]
[1750161824647,0.80619909,105690.0,105680.0,0.04116252]
[1750161824853,0.56979996,105690.0,105680.0,0.23987551]
[1750161825054,0.80619909,105690.0,105680.0,0.23987551]
[1750161825486,0.00946217,105680.0,105670.0,0.50290143]
[1750161826595,0.01892416,105680.0,105670.0,0.50290143]
[1750161827046,0.01892416,105680.0,105670.0,0.50490143]
[1750161827259,0.03784831,105680.0,105670.0,0.50490143]
[1750161827471,0.03784831,105680.0,105670.0,0.34107882]
[1750161827685,0.03784822,105680.0,105670.0,0.49635882]
[1750161828120,0.04731056,105680.0,105670.0,0.49631882]
[1750161828583,0.04731056,105680.0,105670.0,0.37517882]
[1750161828799,0.03784866,105680.0,105670.0,0.53041882]
[1750161829221,0.02838632,105680.0,105670.0,0.53037882]
[1750161829430,0.01892407,105680.0,105670.0,0.53037882]
[1750161829884,0.02838632,105680.0,105670.0,0.53037882]
[1750161830310,0.01892407,105680.0,105670.0,0.53037882]
[1750161830524,0.02838632,105680.0,105670.0,0.53037882]
[1750161830743,0.01892407,105680.0,105670.0,0.53037882]
[1750161831018,0.02838632,105680.0,105670.0,0.53037882]
[1750161831222,0.03784866,105680.0,105670.0,0.53037882]
[1750161831845,0.02838632,105680.0,105670.0,0.53037882]
[1750161834008,0.03784866,105680.0,105670.0,0.53037882]
[1750161834630,0.02838632,105680.0,105670.0,0.53037882]
[1750161834859,0.00946172,105680.0,105670.0,0.53107882]
[1750161835070,0.0189238,105680.0,105670.0,0.53107882]
[1750161835709,0.78460473,105690.0,105680.0,0.24187516]
[1750161835919,0.83458636,105690.0,105680.0,0.25133715]
[1750161836169,0.65481223,105690.0,105680.0,0.26079905]
[1750161836381,0.60764576,105690.0,105680.0,0.26079905]
[1750161836592,0.60764576,105690.0,105680.0,0.25133715]
[1750161837670,0.60764576,105690.0,105680.0,0.26079905]
[1750161837671,0.00950821,105690.0,105680.0,0.26079905]
[1750161837878,0.0095083,105690.0,105680.0,0.26079905]
[1750161838088,0.00950821,105690.0,105680.0,0.26079905]
[1750161838304,4.73e-05,105690.0,105680.0,0.26079905]
[1750161838711,0.00950821,105690.0,105680.0,0.26079905]
[1750161839065,0.0189693,105690.0,105680.0,0.26079905]
[1750161839675,0.02843057,105690.0,105680.0,0.26079905]
[1750161839874,0.00950821,105690.0,105680.0,0.26079905]
[1750161840095,0.02843057,105690.0,105680.0,0.26079905]
[1750161840307,0.00950821,105690.0,105680.0,0.26079905]
[1750161840732,0.0189693,105690.0,105680.0,0.26079905]
[1750161840944,0.02843057,105690.0,105680.0,0.26079905]
[1750161841373,0.00950821,105690.0,105680.0,0.26079905]
[1750161842483,0.0189693,105690.0,105680.0,0.26079905]
[1750161842814,0.00950821,105690.0,105680.0,0.26079905]
[1750161843534,0.0189693,105690.0,105680.0,0.26079905]
[1750161843739,0.00950821,105690.0,105680.0,0.26079905]
[1750161844413,0.01896939,105690.0,105680.0,0.26079905]
[1750161844637,0.02843075,105690.0,105680.0,0.26079905]
[1750161844897,4.73e-05,105690.0,105680.0,0.26079905]
[1750161845129,0.01896912,105690.0,105680.0,0.26079905]
[1750161845343,0.01896903,105690.0,105680.0,0.26079905]
[1750161845556,0.00950812,105690.0,105680.0,0.26079905]
[1750161846200,0.01896912,105690.0,105680.0,0.26079905]
[1750161846390,4.73e-05,105690.0,105680.0,0.59343994]
[1750161847792,4.73e-05,105690.0,105680.0,0.59443994]
[1750161848002,4.73e-05,105690.0,105680.0,0.59643994]
[1750161849094,4.73e-05,105690.0,105680.0,0.59543994]
[1750161849300,4.73e-05,105690.0,105680.0,0.59743994]
[1750161850204,4.73e-05,105690.0,105680.0,0.59543994]
[1750161850414,4.73e-05,105690.0,105680.0,0.59343994]
[1750161850630,4.73e-05,105690.0,105680.0,0.60043994]
[1750161850851,4.73e-05,105690.0,105680.0,0.75167994]
[1750161851075,4.73e-05,105690.0,105680.0,0.36004081]
[1750161851285,4.73e-05,105690.0,105680.0,0.36604081]
[1750161851562,4.73e-05,105690.0,105680.0,0.52124081]
[1750161851961,0.00950821,105690.0,105680.0,0.52128081]
[1750161852426,0.26482997,105690.0,105680.0,0.26979905]
[1750161852631,0.25536852,105690.0,105680.0,0.40583905]
[1750161852927,0.0378922,105690.0,105680.0,0.40779905]
[1750161853359,0.01896939,105690.0,105680.0,0.40179905]
[1750161853574,0.01896939,105690.0,105680.0,0.42209905]
[1750161854509,0.0189693,105690.0,105680.0,0.42209905]
[1750161854920,0.02843066,105690.0,105680.0,0.42209905]
[1750161855960,0.02843057,105690.0,105680.0,0.42209905]
[1750161856164,0.0189693,105690.0,105680.0,0.42209905]
[1750161856370,4.73e-05,105690.0,105680.0,0.65849818]
[1750161856621,0.00950812,105690.0,105680.0,0.42209905]
[1750161856833,0.00950812,105690.0,105680.0,0.65849818]
[1750161857457,0.00950812,105690.0,105680.0,0.65845818]
[1750161858076,4.73e-05,105690.0,105680.0,0.75469994]
[1750161865193,4.73e-05,105690.0,105680.0,0.90469994]
[1750161869874,4.73e-05,105690.0,105680.0,0.66830081]
[1750161870083,4.73e-05,105690.0,105680.0,0.90469994]
[1750161870287,4.73e-05,105690.0,105680.0,0.66830081]
[1750161870493,4.73e-05,105690.0,105680.0,0.90469994]
[1750161870694,4.73e-05,105690.0,105680.0,0.74953994]
[1750161870908,4.73e-05,105690.0,105680.0,0.90513994]
[1750161871334,4.73e-05,105690.0,105680.0,0.51314081]
[1750161871545,4.73e-05,105690.0,105680.0,0.90517994]
[1750161872697,4.73e-05,105690.0,105680.0,0.74953994]
[1750161872911,4.73e-05,105690.0,105680.0,0.90517994]
[1750161874793,4.73e-05,105690.0,105680.0,0.74953994]
[1750161875061,4.73e-05,105690.0,105680.0,0.90513994]
[1750161875622,4.73e-05,105690.0,105680.0,0.74953994]
[1750161875882,4.73e-05,105690.0,105680.0,0.90505994]
[1750161880846,4.73e-05,105690.0,105680.0,0.51314081]
[1750161881298,4.73e-05,105690.0,105680.0,0.90517994]
[1750161881514,4.73e-05,105690.0,105680.0,0.74953994]
[1750161881728,4.73e-05,105690.0,105680.0,0.90517994]
[1750161883545,4.73e-05,105690.0,105680.0,0.74953994]
[1750161883769,4.73e-05,105690.0,105680.0,0.90509994]
[1750161887621,4.73e-05,105690.0,105680.0,0.90505994]
[1750161897259,4.73e-05,105690.0,105680.0,0.74953994]
[1750161897506,4.73e-05,105690.0,105680.0,0.90477994]
[1750161900972,4.73e-05,105690.0,105680.0,0.51314081]
[1750161901187,4.73e-05,105690.0,105680.0,0.88831994]
[1750161902017,4.73e-05,105690.0,105680.0,0.90451994]
[1750161905518,4.73e-05,105690.0,105680.0,0.74943994]
[1750161905798,4.73e-05,105690.0,105680.0,0.90443994]
[1750161907649,4.73e-05,105690.0,105680.0,0.73323994]
[1750161907879,4.73e-05,105690.0,105680.0,0.65176081]
[1750161908092,4.73e-05,105690.0,105680.0,0.34934081]
[1750161908326,0.31242039,105700.0,105690.0,0.20815547]
[1750161908560,0.02838345,105690.0,105680.0,0.33041656]
[1750161908789,0.28994349,105690.0,105680.0,0.34934098]
[1750161909009,0.06300581,105690.0,105680.0,0.50426098]
[1750161909229,0.06300581,105690.0,105680.0,0.49826098]
[1750161909462,0.05354436,105690.0,105680.0,0.49826098]
[1750161909680,0.044083,105690.0,105680.0,0.49826098]
[1750161909886,0.03462191,105690.0,105680.0,0.34334098]
[1750161910107,0.04408309,105690.0,105680.0,0.49826098]
[1750161910552,0.00946091,105690.0,105680.0,0.49826098]
[1750161910762,0.01892209,105690.0,105680.0,0.49826098]
[1750161910977,0.018922,105690.0,105680.0,0.49826098]
[1750161911454,0.018922,105690.0,105680.0,0.50226098]
[1750161911662,0.52677562,105700.0,105690.0,0.20815529]
[1750161912113,0.29037649,105700.0,105690.0,0.20815529]
[1750161912321,0.52677562,105700.0,105690.0,0.20815529]
[1750161912526,0.29037649,105700.0,105690.0,0.20815529]
[1750161912751,0.52677562,105700.0,105690.0,0.20815529]
[1750161913390,0.52677562,105700.0,105690.0,0.20915547]
[1750161913600,0.51731525,105700.0,105690.0,0.20915547]
[1750161913822,0.51731525,105700.0,105690.0,0.21861674]
[1750161914080,0.51731525,105700.0,105690.0,0.22061674]
[1750161914932,0.49839388,105700.0,105690.0,0.20169429]
[1750161915151,0.49839388,105700.0,105690.0,0.21115583]
[1750161915566,0.49839388,105700.0,105690.0,0.22061728]
[1750161915980,0.49839388,105700.0,105690.0,0.23007864]
[1750161916603,0.49839388,105700.0,105690.0,0.21115583]
[1750161916817,0.49839388,105700.0,105690.0,0.2016942]
[1750161917247,0.49839388,105700.0,105690.0,0.003]
[1750161918161,0.49839388,105700.0,105690.0,0.002]
[1750161918374,0.23149429,105690.0,105680.0,0.40185922]
[1750161918579,0.46789342,105690.0,105680.0,0.40185922]
[1750161919223,0.27232176,105690.0,105680.0,0.40185922]
[1750161919432,0.48047741,105690.0,105680.0,0.22917533]
[1750161919660,0.48047741,105690.0,105680.0,0.40285949]
[1750161920089,0.24407864,105690.0,105680.0,0.40285949]
[1750161920507,0.24407864,105690.0,105680.0,0.40281949]
[1750161920679,0.24407864,105690.0,105680.0,0.40481949]
[1750161921490,0.24407864,105690.0,105680.0,0.3953575]
[1750161921696,0.23461728,105690.0,105680.0,0.40481958]
[1750161922858,0.47715496,105690.0,105680.0,0.23117533]
[1750161923132,0.45823179,105690.0,105680.0,0.38581551]
[1750161923683,0.45823179,105690.0,105680.0,0.023]
[1750161925057,0.69463092,105690.0,105680.0,0.023]
[1750161925282,0.45823179,105690.0,105680.0,0.023]
[1750161925486,0.61287179,105690.0,105680.0,0.023]
[1750161926780,0.61287179,105690.0,105680.0,0.2217129]
[1750161926990,0.61287179,105690.0,105680.0,0.23117515]
[1750161927422,0.65311179,105690.0,105680.0,0.2217129]
[1750161927824,0.65311179,105690.0,105680.0,0.22171308]
[1750161928029,0.65311179,105690.0,105680.0,0.23117551]
[1750161929057,0.45823179,105690.0,105680.0,0.23117551]
[1750161929400,0.65311179,105690.0,105680.0,0.24063785]
[1750161929882,0.66257333,105690.0,105680.0,0.2501001]
[1750161930031,0.66257333,105690.0,105680.0,0.25956227]
[1750161930032,0.6720346,105690.0,105680.0,0.25956227]
[1750161930238,0.6720346,105690.0,105680.0,0.2501001]
[1750161930437,0.6720346,105690.0,105680.0,0.22171299]
[1750161930638,0.6720346,105690.0,105680.0,0.21225056]
[1750161930845,0.6720346,105690.0,105680.0,0.23117507]
[1750161931042,0.4771546,105690.0,105680.0,0.23117507]
[1750161931274,0.6721546,105690.0,105680.0,0.21225056]
[1750161931434,0.6721546,105690.0,105680.0,0.23117533]
[1750161932098,0.6721146,105690.0,105680.0,0.23117533]
[1750161932309,0.66265333,105690.0,105680.0,0.23117551]
[1750161932503,0.66265333,105690.0,105680.0,0.24063785]
[1750161932710,0.66265333,105690.0,105680.0,0.2501001]
[1750161932941,1.00265333,105690.0,105680.0,0.23117551]
[1750161933110,1.00265333,105690.0,105680.0,0.22171308]
[1750161933358,1.00265333,105690.0,105680.0,0.23117551]
[1750161933542,0.99319179,105690.0,105680.0,0.22171308]
[1750161934980,0.79823179,105690.0,105680.0,0.21225056]
[1750161935184,0.99319179,105690.0,105680.0,0.21225056]
[1750161935779,0.99319179,105690.0,105680.0,0.22171308]
[1750161936363,0.99319179,105690.0,105680.0,0.23117551]
[1750161936522,0.79823179,105690.0,105680.0,0.23117551]
[1750161936718,0.5576171,105690.0,105680.0,0.25009984]
[1750161936934,0.98889623,105690.0,105680.0,0.25956174]
[1750161937388,0.98889623,105690.0,105680.0,0.25956183]
[1750161937980,0.34,105690.0,105680.0,0.25956121]
[1750161938188,0.35892218,105690.0,105680.0,0.29206121]
[1750161938879,0.36838345,105690.0,105680.0,0.29206121]
[1750161939314,0.5726849,105690.0,105680.0,0.29206121]
[1750161939526,0.37784481,105690.0,105680.0,0.29206121]
[1750161939747,0.56322345,105690.0,105680.0,0.29206121]
[1750161940585,0.5726849,105690.0,105680.0,0.29206121]
[1750161940728,0.3778449,105690.0,105680.0,0.29206121]
[1750161940959,0.5726849,105690.0,105680.0,0.29206121]
[1750161941158,0.80908403,105690.0,105680.0,0.29206121]
[1750161941507,0.56318345,105690.0,105680.0,0.29206121]
[1750161942045,0.99827678,105690.0,105680.0,0.29206121]
[1750161942269,0.76187765,105690.0,105680.0,0.29206121]
[1750161942461,0.79958258,105690.0,105680.0,0.29206121]
[1750161942673,0.80904403,105690.0,105680.0,0.29206121]
[1750161944517,0.5726449,105690.0,105680.0,0.29206121]
[1750161944719,0.80904394,105690.0,105680.0,0.29206121]
[1750161944950,0.81850539,105690.0,105680.0,0.29206121]
[1750161945164,0.81866539,105690.0,105680.0,0.29206121]
[1750161945369,1.00789868,105690.0,105680.0,0.29206121]
[1750161946883,0.80920439,105690.0,105680.0,0.29206121]
[1750161947033,0.81866593,105690.0,105680.0,0.29206121]
[1750161947231,0.80920439,105690.0,105680.0,0.29206121]
[1750161947458,0.9984375,105690.0,105680.0,0.26367524]
[1750161948207,0.8034775,105690.0,105680.0,0.26367524]
[1750161948409,0.9983175,105690.0,105680.0,0.26367524]
[1750161948655,0.97939487,105690.0,105680.0,0.22171299]
[1750161949760,0.98663342,105690.0,105680.0,0.21225056]
[1750161949993,0.98663342,105690.0,105680.0,0.023]
[1750161950610,0.98663342,105690.0,105680.0,0.21225056]
[1750161950611,0.96993342,105690.0,105680.0,0.21225056]
[1750161950820,0.96993342,105690.0,105680.0,0.22171308]
[1750161951473,0.96993342,105690.0,105680.0,0.23117551]
[1750161951902,0.96993342,105690.0,105680.0,0.24063785]
[1750161952333,0.96993342,105690.0,105680.0,0.23117551]
[1750161952993,0.96993342,105690.0,105680.0,0.21225056]
[1750161953206,0.96993342,105690.0,105680.0,0.22171308]
[1750161953654,0.77509342,105690.0,105680.0,0.22171308]
[1750161953844,0.96989342,105690.0,105680.0,0.22171308]
[1750161954067,0.96989342,105690.0,105680.0,0.023]
[1750161954271,0.96989342,105690.0,105680.0,0.2217129]
[1750161954474,0.96989342,105690.0,105680.0,0.023]
[1750161957198,1.35027516,105690.0,105680.0,0.023]
[1750161957414,1.46911859,105690.0,105680.0,0.023]
[1750161957622,1.96241859,105690.0,105680.0,0.023]
[1750161958445,1.48962033,105690.0,105680.0,0.023]
[1750161958669,1.96241859,105690.0,105680.0,0.023]
[1750161959400,1.96237859,105690.0,105680.0,0.023]
[1750161960324,1.86622937,105690.0,105680.0,0.023]
[1750161962517,1.36027111,105690.0,105680.0,0.21225056]
[1750161962729,1.57397603,105690.0,105680.0,0.21225056]
[1750161962966,1.57397603,105690.0,105680.0,0.24695056]
[1750161962967,1.56885654,105690.0,105680.0,0.24695056]
[1750161963184,0.88292109,105690.0,105680.0,0.26587524]
[1750161963407,0.87114445,105690.0,105680.0,0.27533723]
[1750161963634,0.4933,105690.0,105680.0,0.28479913]
[1750161963890,0.71376794,105710.0,105690.0,0.21761647]
[1750161964129,0.06854094,105700.0,105690.0,0.25061665]
[1750161964346,0.22322094,105700.0,105690.0,0.26007765]
[1750161964556,0.22322094,105700.0,105690.0,0.25061665]
[1750161964768,0.56322068,105700.0,105690.0,0.26007765]
[1750161964977,0.34946011,105700.0,105690.0,0.26007765]
[1750161965191,0.55380031,105700.0,105690.0,0.26007765]
[1750161965404,0.35892031,105700.0,105690.0,0.26007765]
[1750161965618,0.50418011,105700.0,105690.0,0.26007765]
[1750161965830,0.81951686,105710.0,105700.0,0.25229623]
[1750161965831,0.89499467,105710.0,105700.0,0.25229623]
[1750161966042,1.52492959,105710.0,105700.0,0.24283594]
[1750161966264,1.53438943,105710.0,105700.0,0.2617566]
[1750161966502,1.5229304,105710.0,105700.0,0.25229667]
[1750161966703,1.5229304,105710.0,105700.0,0.24283612]
[1750161966927,1.33373355,105710.0,105700.0,0.25229667]
[1750161967139,1.31481405,105710.0,105700.0,0.26175713]
[1750161967357,0.89299449,105710.0,105700.0,0.27121671]
[1750161967556,1.07857447,105710.0,105700.0,0.27121671]
[1750161967828,0.39223447,105710.0,105700.0,0.27121671]
[1750161968069,0.58727447,105710.0,105700.0,0.27121671]
[1750161968293,0.04277517,105710.0,105700.0,0.27121671]
[1750161968522,0.23777517,105710.0,105700.0,0.27121671]
[1750161969226,0.23981517,105710.0,105700.0,0.27121671]
[1750161969710,0.23977517,105710.0,105700.0,0.27121671]
[1750161969945,0.24723438,105710.0,105700.0,0.27121671]
[1750161970662,0.05223438,105710.0,105700.0,0.27121671]
[1750161970890,0.03331614,105710.0,105700.0,0.27121671]
[1750161971120,0.04077526,105710.0,105700.0,0.27121671]
[1750161971595,0.05969404,105710.0,105700.0,0.27121671]
[1750161971836,0.03131614,105710.0,105700.0,0.27121671]
[1750161972087,0.04077517,105710.0,105700.0,0.27121671]
[1750161972326,0.03131614,105710.0,105700.0,0.27121671]
[1750161972958,0.04077526,105710.0,105700.0,0.27121671]
[1750161973391,0.05023456,105710.0,105700.0,0.27121671]
[1750161974036,0.03131614,105710.0,105700.0,0.27121671]
[1750161974510,0.04077526,105710.0,105700.0,0.27121671]
[1750161974720,0.03131614,105710.0,105700.0,0.27121671]
[1750161975870,4.732e-05,105710.0,105700.0,0.27121671]
[1750161977392,0.00950653,105710.0,105700.0,0.27121671]
[1750161977616,0.00950653,105710.0,105700.0,0.42581671]
[1750161977854,0.00950653,105710.0,105700.0,0.27121671]
[1750161978084,0.00950653,105710.0,105700.0,0.42577671]
[1750161978515,4.732e-05,105710.0,105700.0,0.42577671]
[1750161978740,0.00950644,105710.0,105700.0,0.42577671]
[1750161979232,0.01896574,105710.0,105700.0,0.42577671]
[1750161979470,0.00950644,105710.0,105700.0,0.42577671]
[1750161979681,0.02483108,105710.0,105700.0,0.42577671]
[1750161979894,4.732e-05,105710.0,105700.0,0.42577671]
[1750161981461,4.732e-05,105710.0,105700.0,0.7584176]
[1750161983401,4.732e-05,105710.0,105700.0,0.7583776]
[1750161984762,4.732e-05,105710.0,105700.0,0.7623776]
[1750161985350,4.732e-05,105710.0,105700.0,0.7643776]
[1750161985604,4.732e-05,105710.0,105700.0,0.7642976]
[1750161990648,4.732e-05,105710.0,105700.0,0.52345847]
[1750161990912,4.732e-05,105710.0,105700.0,0.52789847]
[1750161991132,4.732e-05,105710.0,105700.0,0.7642976]
[1750161991990,4.732e-05,105710.0,105700.0,0.7642576]
[1750161993729,4.732e-05,105710.0,105700.0,0.7642576]
[1750161998668,4.732e-05,105710.0,105700.0,0.9642576]
[1750161999560,4.732e-05,105710.0,105700.0,0.9622576]
[1750161999759,0.21042763,105760.0,105750.0,0.21749299]
[1750161999760,0.00494084,105760.0,105750.0,0.21749299]
[1750162000014,0.59006007,105770.0,105760.0,0.22692745]
[1750162000233,0.56170942,105770.0,105760.0,0.22692745]
[1750162000665,0.79461546,105770.0,105760.0,0.21747271]
[1750162000872,1.13461617,105770.0,105760.0,0.20801788]
[1750162001109,0.76256215,105770.0,105760.0,0.19856278]
[1750162001325,0.88780242,105770.0,105760.0,0.37187307]
[1750162001534,1.16420155,105770.0,105760.0,0.37187307]
[1750162001754,1.16720155,105770.0,105760.0,0.37187307]
[1750162002225,1.16720155,105770.0,105760.0,0.36241806]
[1750162002435,1.17020155,105770.0,105760.0,0.37187316]
[1750162002865,1.17020155,105770.0,105760.0,0.38132817]
[1750162003083,1.17020155,105770.0,105760.0,0.39078309]
[1750162003301,0.97165755,105770.0,105760.0,0.39078246]
[1750162003478,1.17020155,105770.0,105760.0,0.39078246]
[1750162003716,1.16720155,105770.0,105760.0,0.39078246]
[1750162003928,1.16820155,105770.0,105760.0,0.38132772]
[1750162004138,0.92880242,105770.0,105760.0,0.38132772]
[1750162004359,0.92980242,105770.0,105760.0,0.39078255]
[1750162004568,1.12620155,105770.0,105760.0,0.39078255]
[1750162004795,1.16620155,105770.0,105760.0,0.39078255]
[1750162005011,1.14880155,105770.0,105760.0,0.39078255]
[1750162006367,1.14880155,105770.0,105760.0,0.39078201]
[1750162007034,0.95025666,105770.0,105760.0,0.39078201]
[1750162007235,0.96916533,105770.0,105760.0,0.39078201]
[1750162007456,0.96916533,105770.0,105760.0,0.23638201]
[1750162007663,0.96916533,105770.0,105760.0,0.39074201]
[1750162007864,1.15825486,105770.0,105760.0,0.39074201]
[1750162008072,1.16770933,105770.0,105760.0,0.22692727]
[1750162008280,0.96916515,105770.0,105760.0,0.39074201]
[1750162009119,1.15825468,105770.0,105760.0,0.39074201]
[1750162009340,0.00204735,105770.0,105760.0,0.42344201]
[1750162009551,0.03040951,105770.0,105760.0,0.26908201]
[1750162009763,0.02095522,105770.0,105760.0,0.26908201]
[1750162010008,0.02836449,105760.0,105750.0,0.25964907]
[1750162010213,0.25530852,105760.0,105750.0,0.41400907]
[1750162010416,0.0189093,105760.0,105750.0,0.41400907]
[1750162010624,0.01890921,105760.0,105750.0,0.41400907]
[1750162011247,0.01890921,105760.0,105750.0,0.41600907]
[1750162011782,0.03781896,105760.0,105750.0,0.26164907]
[1750162011995,0.02836395,105760.0,105750.0,0.41600907]
[1750162012407,0.01890921,105760.0,105750.0,0.26164907]
[1750162012620,0.02836404,105760.0,105750.0,0.41600907]
[1750162012826,0.01890921,105760.0,105750.0,0.41600907]
[1750162013310,0.27630777,105770.0,105760.0,0.21747244]
[1750162013478,0.28576215,105770.0,105760.0,0.21747244]
[1750162013885,4.735e-05,105770.0,105760.0,0.21747244]
[1750162014087,4.735e-05,105770.0,105760.0,0.5016742]
[1750162014308,4.735e-05,105770.0,105760.0,0.73371333]
[1750162014531,4.735e-05,105770.0,105760.0,0.4973142]
[1750162014745,4.735e-05,105770.0,105760.0,0.5016742]
[1750162014959,0.23644648,105770.0,105760.0,0.25207244]
[1750162015183,0.24590015,105770.0,105760.0,0.37283244]
[1750162015393,0.255354,105770.0,105760.0,0.37183244]
[1750162015609,0.26480794,105770.0,105760.0,0.37183244]
[1750162015818,0.26480794,105770.0,105760.0,0.21747244]
[1750162016023,0.28371625,105770.0,105760.0,0.19856269]
[1750162016248,0.2742624,105770.0,105760.0,0.21747262]
[1750162016484,0.26480829,105770.0,105760.0,0.38128736]
[1750162016719,0.25535427,105770.0,105760.0,0.38428736]
[1750162016932,0.4444438,105770.0,105760.0,0.36237779]
[1750162017168,4.735e-05,105770.0,105760.0,0.74752843]
[1750162017379,4.735e-05,105770.0,105760.0,0.5131293]
[1750162017627,4.735e-05,105770.0,105760.0,0.5141293]
[1750162017849,4.735e-05,105770.0,105760.0,0.75052843]
[1750162018941,4.735e-05,105770.0,105760.0,0.5141293]
[1750162019162,4.735e-05,105770.0,105760.0,0.9592131]
[1750162019383,4.735e-05,105770.0,105760.0,0.3597693]
[1750162019600,4.735e-05,105770.0,105760.0,0.5141293]
[1750162020044,4.735e-05,105770.0,105760.0,0.5111293]
[1750162020298,4.735e-05,105770.0,105760.0,0.5131293]
[1750162020510,4.735e-05,105770.0,105760.0,0.5151293]
[1750162020724,4.735e-05,105770.0,105760.0,0.5131293]
[1750162020932,4.735e-05,105770.0,105760.0,0.8062131]
[1750162021152,4.735e-05,105770.0,105760.0,0.8092131]
[1750162021806,4.735e-05,105770.0,105760.0,0.5141293]
[1750162022912,4.735e-05,105770.0,105760.0,1.5922969]
[1750162023139,4.735e-05,105770.0,105760.0,1.6128426]
[1750162023364,4.735e-05,105770.0,105760.0,1.3177588]
[1750162023994,4.735e-05,105770.0,105760.0,1.6128426]
[1750162024216,4.735e-05,105770.0,105760.0,1.62738345]
[1750162024436,4.735e-05,105770.0,105760.0,0.872315]
[1750162024652,0.01,105800.0,105770.0,0.2]
[1750162024873,0.01,105800.0,105790.0,0.54559456]
[1750162024874,0.01047324,105800.0,105790.0,0.54559456]
[1750162025092,0.01047324,105800.0,105790.0,0.34675252]
[1750162026324,0.01047324,105800.0,105790.0,0.64183632]
[1750162027028,0.01047324,105800.0,105790.0,0.64483632]
[1750162027502,0.01047324,105800.0,105790.0,0.80123632]
[1750162027760,0.01047324,105800.0,105790.0,0.79623632]
[1750162028194,0.01047324,105800.0,105790.0,0.64883632]
[1750162028409,0.01047324,105800.0,105790.0,0.80323632]
[1750162028650,0.01047324,105800.0,105790.0,1.14323632]
[1750162029536,0.01047324,105800.0,105790.0,0.69375252]
[1750162029755,0.01047324,105800.0,105790.0,0.47501252]
[1750162029981,0.01047324,105800.0,105790.0,0.47505252]
[1750162030201,0.02937566,105800.0,105790.0,0.22441076]
[1750162030455,0.01992432,105800.0,105790.0,0.37181076]
[1750162030883,0.03882718,105800.0,105790.0,0.22241076]
[1750162031091,0.03882727,105800.0,105790.0,0.21941076]
[1750162031311,0.03882727,105800.0,105790.0,0.37177076]
[1750162031537,0.03882718,105800.0,105790.0,0.37277076]
[1750162031757,0.02937566,105800.0,105790.0,0.37277076]
[1750162031986,0.03882727,105800.0,105790.0,0.37277076]
[1750162032639,0.03982727,105800.0,105790.0,0.37277076]
[1750162033294,0.03982727,105800.0,105790.0,0.37177076]
[1750162033504,0.04082727,105800.0,105790.0,0.37177076]
[1750162033720,0.04082727,105800.0,105790.0,0.21741076]
[1750162033929,0.04082727,105800.0,105790.0,0.37173076]
[1750162034350,0.04082727,105800.0,105790.0,0.37169076]
[1750162034988,0.23931488,105800.0,105790.0,0.2079587]
[1750162035209,0.23931488,105800.0,105790.0,0.20795879]
[1750162035451,0.2298638,105800.0,105790.0,0.37173103]
[1750162035670,0.04082789,105800.0,105790.0,0.38118309]
[1750162035892,0.2298638,105800.0,105790.0,0.38118309]
[1750162036327,0.23931559,105800.0,105790.0,0.38118309]
[1750162037261,0.23931559,105800.0,105790.0,0.22686309]
[1750162038131,0.08082789,105800.0,105790.0,0.22686309]
[1750162038563,0.02192432,105800.0,105790.0,0.22686309]
[1750162038786,0.06192432,105800.0,105790.0,0.22686309]
[1750162039212,0.04082683,105800.0,105790.0,0.22686309]
[1750162039670,0.05027844,105800.0,105790.0,0.22686309]
[1750162040322,0.23931435,105800.0,105790.0,0.22686309]
[1750162040577,0.24876676,105800.0,105790.0,0.20795879]
[1750162040794,0.22986425,105800.0,105790.0,0.20795879]
[1750162041016,0.22986425,105800.0,105790.0,0.21741112]
[1750162041872,0.22986425,105800.0,105790.0,0.20795879]
[1750162042095,0.21096094,105800.0,105790.0,0.19850646]
[1750162042743,0.21096094,105800.0,105790.0,0.20795905]
[1750162043178,0.21096094,105800.0,105790.0,0.21741147]
[1750162043403,0.21096094,105800.0,105790.0,0.20795905]
[1750162043619,0.26041246,105800.0,105790.0,0.24446344]
[1750162044033,0.03137548,105800.0,105790.0,0.22686344]
[1750162044218,0.04082691,105800.0,105790.0,0.22686344]
[1750162044498,0.03137548,105800.0,105790.0,0.22686344]
[1750162044725,0.04082691,105800.0,105790.0,0.22686344]
[1750162045203,0.05027843,105800.0,105790.0,0.22686344]
[1750162045422,0.01247324,105800.0,105790.0,0.26166344]
[1750162046072,0.03137548,105800.0,105790.0,0.26166344]
[1750162046285,0.01247324,105800.0,105790.0,0.26166344]
[1750162046498,0.0313754,105800.0,105790.0,0.26166344]
[1750162046932,0.04082683,105800.0,105790.0,0.26166344]
[1750162047148,0.04082683,105800.0,105790.0,0.39804344]
[1750162048006,0.04082683,105800.0,105790.0,0.41594344]
[1750162048237,0.02192432,105800.0,105790.0,0.41594344]
[1750162048657,0.03137557,105800.0,105790.0,0.41594344]
[1750162049429,0.04082683,105800.0,105790.0,0.41594344]
[1750162049629,0.03137549,105800.0,105790.0,0.41594344]
[1750162049874,0.03137566,105800.0,105790.0,0.41594344]
[1750162050298,0.02192432,105800.0,105790.0,0.41594344]
[1750162050549,0.01247324,105800.0,105790.0,0.41594344]
[1750162050794,0.02192441,105800.0,105790.0,0.41594344]
[1750162051008,0.01247324,105800.0,105790.0,0.41594344]
[1750162051227,0.02192441,105800.0,105790.0,0.41594344]
[1750162052260,0.02192432,105800.0,105790.0,0.41594344]
[1750162053382,0.03137557,105800.0,105790.0,0.41594344]
[1750162053604,0.03137549,105800.0,105790.0,0.41594344]
[1750162053828,0.05027817,105800.0,105790.0,0.41594344]
[1750162054046,0.04082674,105800.0,105790.0,0.41594344]
[1750162054302,0.03137549,105800.0,105790.0,0.41594344]
[1750162054713,0.02192432,105800.0,105790.0,0.41594344]
[1750162054924,0.03137557,105800.0,105790.0,0.41594344]
[1750162055137,0.01247324,105800.0,105790.0,0.5121852]
[1750162055354,0.04082683,105800.0,105790.0,0.5121852]
[1750162055576,0.04082692,105800.0,105790.0,0.41594344]
[1750162055839,0.04082683,105800.0,105790.0,0.41594344]
[1750162056057,0.05027826,105800.0,105790.0,0.41594344]
[1750162056256,0.04082674,105800.0,105790.0,0.41594344]
[1750162056498,0.02192423,105800.0,105790.0,0.41594344]
[1750162057154,0.01247324,105800.0,105790.0,0.41594344]
[1750162058193,0.02192423,105800.0,105790.0,0.41594344]
[1750162058438,0.01247324,105800.0,105790.0,0.74815125]